[Event "Late-Titled-Tuesday-Blitz-September-05-2023"]
[Site "Chess.com"]
[Date "2023.09.05"]
[Round "1"]
[White "Msb2"]
[Black "chessisveryfun1264"]
[Result "1-0"]
[WhiteElo "3091"]
[BlackElo "2503"]
[TimeControl "180+1"]
[EndTime "14:06:27 PDT"]
[Termination "Msb2 won by checkmate"]

1. d4 {[%clk 0:03:00.9]} 1... e6 {[%clk 0:02:56.3]} 2. c4 {[%clk 0:03:01.2]}
2... b6 {[%clk 0:02:53.5]} 3. a3 {[%clk 0:03:00.9]} 3... Bb7 {[%clk 0:02:51.2]}
4. Nc3 {[%clk 0:03:01.6]} 4... f5 {[%clk 0:02:50.5]} 5. Bf4 {[%clk 0:03:01.5]}
5... Nf6 {[%clk 0:02:49.8]} 6. e3 {[%clk 0:03:02.1]} 6... d6 {[%clk 0:02:44.5]}
7. Nf3 {[%clk 0:03:01.4]} 7... Nbd7 {[%clk 0:02:41.9]} 8. Ng5 {[%clk 0:02:56.6]}
8... Qe7 {[%clk 0:02:38]} 9. Nb5 {[%clk 0:02:56.1]} 9... O-O-O {[%clk
0:02:21.8]} 10. Nxa7+ {[%clk 0:02:39.1]} 10... Kb8 {[%clk 0:02:18.7]} 11. Qa4
{[%clk 0:02:39.3]} 11... e5 {[%clk 0:02:08.3]} 12. c5 {[%clk 0:02:11.5]} 12...
dxc5 {[%clk 0:01:42.5]} 13. Nc6+ {[%clk 0:02:03.9]} 13... Bxc6 {[%clk
0:01:41.8]} 14. Qxc6 {[%clk 0:02:04.8]} 14... Qd6 {[%clk 0:01:35.2]} 15. Qxd6
{[%clk 0:01:59.2]} 15... cxd6 {[%clk 0:01:36.1]} 16. dxe5 {[%clk 0:01:55.8]}
16... dxe5 {[%clk 0:01:35.6]} 17. Bg3 {[%clk 0:01:56.5]} 17... Re8 {[%clk
0:01:30.8]} 18. O-O-O {[%clk 0:01:56]} 18... h6 {[%clk 0:01:21.1]} 19. Nf7
{[%clk 0:01:48.7]} 19... Rh7 {[%clk 0:01:21.5]} 20. Bb5 {[%clk 0:01:47.8]} 20...
Kc7 {[%clk 0:01:16.7]} 21. Nxe5 {[%clk 0:01:48.2]} 21... Rxe5 {[%clk 0:01:14.2]}
22. Bxd7 {[%clk 0:01:46.4]} 22... Nxd7 {[%clk 0:01:06.4]} 23. Rxd7+ {[%clk
0:01:45.6]} 23... Kxd7 {[%clk 0:01:07.3]} 24. Bxe5 {[%clk 0:01:46]} 24... Ke6
{[%clk 0:01:06.9]} 25. Bc3 {[%clk 0:01:44.6]} 25... g5 {[%clk 0:01:06]} 26. Rd1
{[%clk 0:01:43]} 26... Be7 {[%clk 0:01:04.2]} 27. a4 {[%clk 0:01:41.8]} 27... h5
{[%clk 0:01:02.8]} 28. Kc2 {[%clk 0:01:41.8]} 28... h4 {[%clk 0:01:02.2]} 29.
Kb3 {[%clk 0:01:40.1]} 29... g4 {[%clk 0:01:02.2]} 30. Kc4 {[%clk 0:01:39.7]}
30... g3 {[%clk 0:00:56.6]} 31. hxg3 {[%clk 0:01:38.8]} 31... hxg3 {[%clk
0:00:57.5]} 32. fxg3 {[%clk 0:01:39.7]} 32... Rh2 {[%clk 0:00:56.9]} 33. Rd2
{[%clk 0:01:40.3]} 33... Bd6 {[%clk 0:00:54.1]} 34. Kb5 {[%clk 0:01:40.1]} 34...
Bc7 {[%clk 0:00:49.1]} 35. Kc6 {[%clk 0:01:40.6]} 35... Rh7 {[%clk 0:00:45.6]}
36. Re2 {[%clk 0:01:40.7]} 36... Bd8 {[%clk 0:00:32.7]} 37. e4 {[%clk
0:01:41.2]} 37... Rc7+ {[%clk 0:00:29]} 38. Kb5 {[%clk 0:01:41.7]} 38... Rd7
{[%clk 0:00:22.3]} 39. exf5+ {[%clk 0:01:41.4]} 39... Kxf5 {[%clk 0:00:19.3]}
40. Kc6 {[%clk 0:01:37]} 40... Rc7+ {[%clk 0:00:18.5]} 41. Kd6 {[%clk
0:01:37.6]} 41... Rh7 {[%clk 0:00:17.8]} 42. Re8 {[%clk 0:01:37.1]} 42... Bc7+
{[%clk 0:00:18.2]} 43. Kc6 {[%clk 0:01:36.9]} 43... Bxg3 {[%clk 0:00:16.4]} 44.
Kxb6 {[%clk 0:01:37.1]} 44... Bf2 {[%clk 0:00:15.6]} 45. a5 {[%clk 0:01:37]}
45... Kf4 {[%clk 0:00:15.4]} 46. Rf8+ {[%clk 0:01:35.1]} 46... Kg3 {[%clk
0:00:15.8]} 47. a6 {[%clk 0:01:34.5]} 47... Be3 {[%clk 0:00:14.3]} 48. Rf3+
{[%clk 0:01:34.6]} 48... Kxg2 {[%clk 0:00:14.2]} 49. Rxe3 {[%clk 0:01:35.5]}
49... c4 {[%clk 0:00:14.2]} 50. Re4 {[%clk 0:01:35.7]} 50... Rh5 {[%clk
0:00:15]} 51. Rxc4 {[%clk 0:01:35.9]} 51... Rh6+ {[%clk 0:00:15.7]} 52. Rc6
{[%clk 0:01:36.4]} 52... Rh7 {[%clk 0:00:16.6]} 53. Rg6+ {[%clk 0:01:36.7]}
53... Kf3 {[%clk 0:00:15.9]} 54. Rg7 {[%clk 0:01:37.6]} 54... Rh6+ {[%clk
0:00:16]} 55. Kb7 {[%clk 0:01:38.2]} 55... Rh5 {[%clk 0:00:15.2]} 56. a7 {[%clk
0:01:38.7]} 56... Rb5+ {[%clk 0:00:16.1]} 57. Ka6 {[%clk 0:01:39.2]} 57... Rb3
{[%clk 0:00:15.9]} 58. a8=Q+ {[%clk 0:01:39.6]} 58... Rb7 {[%clk 0:00:16.3]} 59.
Qxb7+ {[%clk 0:01:39.6]} 59... Ke2 {[%clk 0:00:17.2]} 60. Qe4+ {[%clk
0:01:39.7]} 60... Kd1 {[%clk 0:00:18.1]} 61. Qd3+ {[%clk 0:01:40]} 61... Kc1
{[%clk 0:00:17.5]} 62. Rg1# {[%clk 0:01:40.9]} 1-0

[Event "Late-Titled-Tuesday-Blitz-September-05-2023"]
[Site "Chess.com"]
[Date "2023.09.05"]
[Round "1"]
[White "FaustinoOro"]
[Black "Fleetw00dMac"]
[Result "1-0"]
[WhiteElo "2878"]
[BlackElo "2457"]
[TimeControl "180+1"]
[EndTime "14:06:29 PDT"]
[Termination "FaustinoOro won by resignation"]

1. e4 {[%clk 0:03:00.9]} 1... e5 {[%clk 0:02:58.1]} 2. Nf3 {[%clk 0:03:01]} 2...
Nc6 {[%clk 0:02:58.5]} 3. Bb5 {[%clk 0:03:00.8]} 3... a6 {[%clk 0:02:58.2]} 4.
Ba4 {[%clk 0:03:01.1]} 4... Nf6 {[%clk 0:02:57.7]} 5. O-O {[%clk 0:03:00.1]}
5... Nxe4 {[%clk 0:02:56.9]} 6. d4 {[%clk 0:03:00]} 6... Be7 {[%clk 0:02:55.2]}
7. Re1 {[%clk 0:02:56.5]} 7... b5 {[%clk 0:02:54.1]} 8. Bb3 {[%clk 0:02:55.7]}
8... d5 {[%clk 0:02:52.3]} 9. dxe5 {[%clk 0:02:56]} 9... Be6 {[%clk 0:02:52]}
10. c3 {[%clk 0:02:55.7]} 10... O-O {[%clk 0:02:50.9]} 11. Nbd2 {[%clk
0:02:53.1]} 11... Nc5 {[%clk 0:02:50.2]} 12. Bc2 {[%clk 0:02:53.7]} 12... d4
{[%clk 0:02:50.2]} 13. cxd4 {[%clk 0:02:24.2]} 13... Nxd4 {[%clk 0:02:48.6]} 14.
Nxd4 {[%clk 0:02:21.3]} 14... Qxd4 {[%clk 0:02:47.9]} 15. Qh5 {[%clk 0:02:12.1]}
15... g6 {[%clk 0:01:54.8]} 16. Qh6 {[%clk 0:01:57]} 16... Qh4 {[%clk
0:01:36.9]} 17. Qe3 {[%clk 0:01:46.8]} 17... Rfd8 {[%clk 0:01:20.4]} 18. Nf3
{[%clk 0:01:45.7]} 18... Qh5 {[%clk 0:01:19.1]} 19. Qc3 {[%clk 0:01:33.3]} 19...
b4 {[%clk 0:01:02.9]} 20. Qe3 {[%clk 0:01:29.1]} 20... Rab8 {[%clk 0:00:56.2]}
21. b3 {[%clk 0:01:23.1]} 21... Bf5 {[%clk 0:00:51.9]} 22. Bxf5 {[%clk
0:01:18.4]} 22... Qxf5 {[%clk 0:00:51.5]} 23. Nd4 {[%clk 0:01:18.1]} 23... Rxd4
{[%clk 0:00:30.5]} 24. Qxd4 {[%clk 0:01:17.4]} 24... Rd8 {[%clk 0:00:30.7]} 25.
Qc4 {[%clk 0:01:09.1]} 25... Nd3 {[%clk 0:00:29.9]} 26. Rf1 {[%clk 0:01:09]}
26... Qxe5 {[%clk 0:00:26.9]} 27. Be3 {[%clk 0:01:06.4]} 27... Bd6 {[%clk
0:00:16.7]} 28. g3 {[%clk 0:01:06.3]} 28... Qf5 {[%clk 0:00:14.8]} 29. Bd4
{[%clk 0:00:51.7]} 29... c5 {[%clk 0:00:12]} 30. Rad1 {[%clk 0:00:50.7]} 30...
cxd4 {[%clk 0:00:04.2]} 31. Rxd3 {[%clk 0:00:45.7]} 1-0

[Event "Late-Titled-Tuesday-Blitz-September-05-2023"]
[Site "Chess.com"]
[Date "2023.09.05"]
[Round "1"]
[White "lacafi"]
[Black "WPWPWP-2015"]
[Result "0-1"]
[WhiteElo "2212"]
[BlackElo "2545"]
[TimeControl "180+1"]
[EndTime "14:06:30 PDT"]
[Termination "WPWPWP-2015 won on time"]

1. d4 {[%clk 0:03:00.9]} 1... d5 {[%clk 0:02:55.7]} 2. Nf3 {[%clk 0:03:00.6]}
2... c6 {[%clk 0:02:55.8]} 3. e3 {[%clk 0:03:00.6]} 3... Bf5 {[%clk 0:02:54.3]}
4. Bd3 {[%clk 0:02:57.6]} 4... e6 {[%clk 0:02:54.5]} 5. O-O {[%clk 0:02:50.6]}
5... Nd7 {[%clk 0:02:53.3]} 6. b3 {[%clk 0:02:47.7]} 6... Ngf6 {[%clk
0:02:51.7]} 7. Bb2 {[%clk 0:02:47.3]} 7... Bd6 {[%clk 0:02:50.5]} 8. Bxf5 {[%clk
0:02:45.1]} 8... exf5 {[%clk 0:02:50.1]} 9. c4 {[%clk 0:02:45.4]} 9... O-O
{[%clk 0:02:48.7]} 10. Nc3 {[%clk 0:02:43.6]} 10... a6 {[%clk 0:02:47.3]} 11.
cxd5 {[%clk 0:02:43.4]} 11... cxd5 {[%clk 0:02:46.7]} 12. Rc1 {[%clk 0:02:32.1]}
12... g6 {[%clk 0:02:45.9]} 13. a3 {[%clk 0:02:31.9]} 13... Qe7 {[%clk
0:02:44.8]} 14. b4 {[%clk 0:02:32]} 14... Nb6 {[%clk 0:02:44]} 15. Nd2 {[%clk
0:02:27.5]} 15... Rac8 {[%clk 0:02:41.3]} 16. Na4 {[%clk 0:01:59.6]} 16... Nc4
{[%clk 0:02:39.7]} 17. Nxc4 {[%clk 0:01:57.8]} 17... Rxc4 {[%clk 0:02:36.8]} 18.
Nb6 {[%clk 0:01:47.4]} 18... Bxh2+ {[%clk 0:02:05.9]} 19. Kh1 {[%clk 0:01:19.6]}
19... Rxc1 {[%clk 0:02:00.1]} 20. Qxc1 {[%clk 0:01:18.1]} 20... Bc7 {[%clk
0:01:44.7]} 21. Na4 {[%clk 0:00:56.4]} 21... Ng4 {[%clk 0:01:40.1]} 22. g3
{[%clk 0:00:55.5]} 22... Bd6 {[%clk 0:01:20.3]} 23. Nb6 {[%clk 0:00:51]} 23...
Qe6 {[%clk 0:01:04.8]} 24. Kg2 {[%clk 0:00:25.7]} 24... Bxg3 {[%clk 0:00:56.2]}
25. Kxg3 {[%clk 0:00:17.6]} 25... Qxb6 {[%clk 0:00:52.5]} 26. Qc5 {[%clk
0:00:13.9]} 26... Qd8 {[%clk 0:00:48.9]} 27. Rc1 {[%clk 0:00:10.7]} 27... Qg5
{[%clk 0:00:43.7]} 28. f4 {[%clk 0:00:09.1]} 28... Qh5 {[%clk 0:00:39.4]} 0-1

[Event "Late-Titled-Tuesday-Blitz-September-05-2023"]
[Site "Chess.com"]
[Date "2023.09.05"]
[Round "1"]
[White "Boorchess"]
[Black "talaicito"]
[Result "1-0"]
[WhiteElo "2563"]
[BlackElo "2256"]
[TimeControl "180+1"]
[EndTime "14:06:35 PDT"]
[Termination "Boorchess won on time"]

1. d4 {[%clk 0:02:59.2]} 1... e6 {[%clk 0:02:57.8]} 2. Nf3 {[%clk 0:02:57.8]}
2... f5 {[%clk 0:02:57.5]} 3. Bf4 {[%clk 0:02:55.6]} 3... Nf6 {[%clk 0:02:57.4]}
4. e3 {[%clk 0:02:55.5]} 4... g6 {[%clk 0:02:57.1]} 5. c4 {[%clk 0:02:54.4]}
5... Bg7 {[%clk 0:02:58]} 6. Nc3 {[%clk 0:02:54.2]} 6... O-O {[%clk 0:02:58.2]}
7. d5 {[%clk 0:02:52.1]} 7... d6 {[%clk 0:02:56.3]} 8. dxe6 {[%clk 0:02:51.5]}
8... Bxe6 {[%clk 0:02:55.9]} 9. Be2 {[%clk 0:02:50.3]} 9... Nc6 {[%clk
0:02:47.9]} 10. Rc1 {[%clk 0:02:46.7]} 10... h6 {[%clk 0:02:45.3]} 11. h3 {[%clk
0:02:46.2]} 11... Nh5 {[%clk 0:02:23.8]} 12. Bh2 {[%clk 0:02:44.8]} 12... f4
{[%clk 0:02:21.5]} 13. e4 {[%clk 0:02:37.2]} 13... Qd7 {[%clk 0:01:21.6]} 14.
Qd2 {[%clk 0:02:34.1]} 14... Rad8 {[%clk 0:01:19.3]} 15. Nd5 {[%clk 0:02:29]}
15... Rde8 {[%clk 0:01:15.7]} 16. Nxf4 {[%clk 0:02:16.5]} 16... Nxf4 {[%clk
0:01:12.5]} 17. Bxf4 {[%clk 0:02:16.6]} 17... g5 {[%clk 0:01:11.6]} 18. Bg3
{[%clk 0:02:02.9]} 18... Qf7 {[%clk 0:01:02.3]} 19. O-O {[%clk 0:01:52.9]} 19...
Qg6 {[%clk 0:01:01]} 20. c5 {[%clk 0:01:35.2]} 20... dxc5 {[%clk 0:00:44.4]} 21.
Rxc5 {[%clk 0:01:24.9]} 21... Rd8 {[%clk 0:00:42.8]} 22. Qc1 {[%clk 0:01:07.4]}
22... Qxe4 {[%clk 0:00:27.9]} 23. Re1 {[%clk 0:01:04.1]} 23... Bxa2 {[%clk
0:00:13.8]} 24. Bc4+ {[%clk 0:00:55.6]} 24... Qxc4 {[%clk 0:00:13.1]} 25. Rxc4
{[%clk 0:00:55.6]} 25... Bxc4 {[%clk 0:00:13.2]} 26. Qxc4+ {[%clk 0:00:55.7]}
26... Kh8 {[%clk 0:00:13.8]} 27. Qb5 {[%clk 0:00:46.2]} 27... Rxf3 {[%clk
0:00:03.9]} 28. gxf3 {[%clk 0:00:38.6]} 28... Nd4 {[%clk 0:00:03.2]} 29. Qxb7
{[%clk 0:00:38.6]} 29... Rf8 {[%clk 0:00:01.5]} 30. Kg2 {[%clk 0:00:35.9]} 1-0

[Event "Late-Titled-Tuesday-Blitz-September-05-2023"]
[Site "Chess.com"]
[Date "2023.09.05"]
[Round "1"]
[White "Eloist"]
[Black "sergoy"]
[Result "0-1"]
[WhiteElo "2464"]
[BlackElo "2898"]
[TimeControl "180+1"]
[EndTime "14:06:36 PDT"]
[Termination "sergoy won on time"]

1. e4 {[%clk 0:03:00.9]} 1... c5 {[%clk 0:02:56.7]} 2. Nf3 {[%clk 0:03:00.9]}
2... d6 {[%clk 0:02:57.2]} 3. Bb5+ {[%clk 0:03:00.3]} 3... Nd7 {[%clk
0:02:57.4]} 4. O-O {[%clk 0:02:59.6]} 4... a6 {[%clk 0:02:56.3]} 5. Bd3 {[%clk
0:02:59.5]} 5... Ngf6 {[%clk 0:02:56.5]} 6. Re1 {[%clk 0:02:59.6]} 6... e6
{[%clk 0:02:56.3]} 7. c3 {[%clk 0:02:59.6]} 7... b5 {[%clk 0:02:56.2]} 8. Bc2
{[%clk 0:02:52.6]} 8... c4 {[%clk 0:02:54.7]} 9. b4 {[%clk 0:02:52]} 9... Bb7
{[%clk 0:02:54.1]} 10. a4 {[%clk 0:02:50.3]} 10... Be7 {[%clk 0:02:52]} 11. d4
{[%clk 0:02:47.9]} 11... cxd3 {[%clk 0:02:49.7]} 12. Bxd3 {[%clk 0:02:43.6]}
12... O-O {[%clk 0:02:47.3]} 13. Na3 {[%clk 0:02:28.9]} 13... Nb6 {[%clk
0:02:36.1]} 14. a5 {[%clk 0:02:21.6]} 14... Nbd7 {[%clk 0:02:30]} 15. c4 {[%clk
0:02:19.2]} 15... bxc4 {[%clk 0:02:29.8]} 16. Nxc4 {[%clk 0:02:18.6]} 16... d5
{[%clk 0:02:30.3]} 17. exd5 {[%clk 0:02:15.5]} 17... Nxd5 {[%clk 0:02:30.6]} 18.
Bd2 {[%clk 0:02:01.7]} 18... Nxb4 {[%clk 0:02:28.3]} 19. Bxh7+ {[%clk
0:01:38.3]} 19... Kxh7 {[%clk 0:02:26.1]} 20. Bxb4 {[%clk 0:01:30.8]} 20... Bxb4
{[%clk 0:02:22.9]} 21. Qb1+ {[%clk 0:01:29.4]} 21... Kg8 {[%clk 0:02:23.5]} 22.
Qxb4 {[%clk 0:01:27.1]} 22... Bxf3 {[%clk 0:02:24]} 23. gxf3 {[%clk 0:01:27]}
23... Qg5+ {[%clk 0:02:11.5]} 24. Kh1 {[%clk 0:01:19.9]} 24... Qf4 {[%clk
0:02:02.9]} 25. Re3 {[%clk 0:01:01.9]} 25... Rac8 {[%clk 0:01:55.9]} 26. Qd6
{[%clk 0:00:55]} 26... Rxc4 {[%clk 0:01:43.1]} 27. Qxd7 {[%clk 0:00:53.9]} 27...
Rc2 {[%clk 0:01:43.7]} 28. Rf1 {[%clk 0:00:44.7]} 28... Rxf2 {[%clk 0:01:41.4]}
29. Rxf2 {[%clk 0:00:42.4]} 29... Qxe3 {[%clk 0:01:41.8]} 30. Qd2 {[%clk
0:00:39.9]} 30... Qc5 {[%clk 0:01:41]} 31. Rg2 {[%clk 0:00:38]} 31... Rb8 {[%clk
0:01:36.8]} 32. Rg1 {[%clk 0:00:28.8]} 32... g6 {[%clk 0:01:22]} 33. Qf4 {[%clk
0:00:16.9]} 33... Rb4 {[%clk 0:01:04.2]} 34. Qf6 {[%clk 0:00:16.6]} 34... Qf5
{[%clk 0:01:01.6]} 35. Qd8+ {[%clk 0:00:13.3]} 35... Kg7 {[%clk 0:00:59.4]} 36.
Qd1 {[%clk 0:00:10.5]} 36... Rb5 {[%clk 0:00:56.2]} 37. Qa1+ {[%clk 0:00:06.8]}
37... Qe5 {[%clk 0:00:55.5]} 0-1

[Event "Late-Titled-Tuesday-Blitz-September-05-2023"]
[Site "Chess.com"]
[Date "2023.09.05"]
[Round "1"]
[White "egnfanclub"]
[Black "lupta_robin"]
[Result "0-1"]
[WhiteElo "2311"]
[BlackElo "2609"]
[TimeControl "180+1"]
[EndTime "14:06:39 PDT"]
[Termination "lupta_robin won by resignation"]

1. e4 {[%clk 0:02:59.5]} 1... Nc6 {[%clk 0:02:56.1]} 2. d4 {[%clk 0:02:58.4]}
2... e5 {[%clk 0:02:54.4]} 3. Nf3 {[%clk 0:02:54.3]} 3... exd4 {[%clk
0:02:52.4]} 4. Nxd4 {[%clk 0:02:48.7]} 4... Qh4 {[%clk 0:02:52.2]} 5. Nc3 {[%clk
0:02:46.6]} 5... Bb4 {[%clk 0:02:50.9]} 6. Nb5 {[%clk 0:02:40.7]} 6... Ba5
{[%clk 0:02:17.6]} 7. Bd3 {[%clk 0:02:35.7]} 7... a6 {[%clk 0:02:16.4]} 8. Na3
{[%clk 0:02:35.5]} 8... Nf6 {[%clk 0:02:11.5]} 9. O-O {[%clk 0:02:31.8]} 9...
Bxc3 {[%clk 0:02:09.7]} 10. bxc3 {[%clk 0:02:31.2]} 10... O-O {[%clk 0:02:06.9]}
11. Qf3 {[%clk 0:02:22.8]} 11... d6 {[%clk 0:02:03.5]} 12. Qg3 {[%clk
0:02:22.4]} 12... Qxg3 {[%clk 0:02:01.5]} 13. hxg3 {[%clk 0:02:23.3]} 13... Re8
{[%clk 0:02:01.3]} 14. f3 {[%clk 0:02:23]} 14... b5 {[%clk 0:02:01.3]} 15. Bg5
{[%clk 0:02:06.6]} 15... Nd7 {[%clk 0:01:56.1]} 16. c4 {[%clk 0:02:03.7]} 16...
b4 {[%clk 0:01:52.2]} 17. Nb1 {[%clk 0:02:03.7]} 17... Nc5 {[%clk 0:01:51.6]}
18. Nd2 {[%clk 0:02:03.7]} 18... a5 {[%clk 0:01:48.9]} 19. Be3 {[%clk
0:01:49.9]} 19... a4 {[%clk 0:01:32.7]} 20. Bxc5 {[%clk 0:01:46.5]} 20... dxc5
{[%clk 0:01:32.5]} 21. f4 {[%clk 0:01:47.1]} 21... f6 {[%clk 0:01:21.1]} 22. Nf3
{[%clk 0:01:21.7]} 22... Nd4 {[%clk 0:01:17.6]} 23. Nxd4 {[%clk 0:01:13.7]}
23... cxd4 {[%clk 0:01:18.5]} 24. c5 {[%clk 0:01:14.4]} 24... Be6 {[%clk
0:01:10.5]} 25. Rfb1 {[%clk 0:01:04.7]} 25... Reb8 {[%clk 0:01:08.7]} 26. a3
{[%clk 0:01:01.5]} 26... b3 {[%clk 0:01:05.8]} 27. cxb3 {[%clk 0:00:59.8]} 27...
axb3 {[%clk 0:01:05.8]} 28. a4 {[%clk 0:00:54.6]} 28... Ra5 {[%clk 0:00:54.7]}
29. Bb5 {[%clk 0:00:52.9]} 29... c6 {[%clk 0:00:38.5]} 30. Bxc6 {[%clk
0:00:48.7]} 30... Rxc5 {[%clk 0:00:39.1]} 31. Bb5 {[%clk 0:00:46.8]} 31... Rc2
{[%clk 0:00:37.9]} 32. Rd1 {[%clk 0:00:44.2]} 32... b2 {[%clk 0:00:36.7]} 33.
Rab1 {[%clk 0:00:38.4]} 33... Ba2 {[%clk 0:00:36.5]} 34. Kf1 {[%clk 0:00:11.9]}
34... Kf8 {[%clk 0:00:35.2]} 0-1

[Event "Late-Titled-Tuesday-Blitz-September-05-2023"]
[Site "Chess.com"]
[Date "2023.09.05"]
[Round "1"]
[White "Dontmesswithme_2"]
[Black "vugarrasulov"]
[Result "0-1"]
[WhiteElo "2483"]
[BlackElo "2964"]
[TimeControl "180+1"]
[EndTime "14:06:42 PDT"]
[Termination "vugarrasulov won on time"]

1. d4 {[%clk 0:03:00.9]} 1... Nf6 {[%clk 0:02:59.6]} 2. c4 {[%clk 0:02:59.1]}
2... e6 {[%clk 0:02:59.7]} 3. g3 {[%clk 0:02:55.8]} 3... c5 {[%clk 0:02:59]} 4.
d5 {[%clk 0:02:55.5]} 4... exd5 {[%clk 0:02:59.5]} 5. cxd5 {[%clk 0:02:55.1]}
5... d6 {[%clk 0:02:59.8]} 6. Nc3 {[%clk 0:02:54.6]} 6... g6 {[%clk 0:02:58.1]}
7. Bg2 {[%clk 0:02:54.1]} 7... Bg7 {[%clk 0:02:58.8]} 8. Nf3 {[%clk 0:02:53.5]}
8... O-O {[%clk 0:02:59.2]} 9. O-O {[%clk 0:02:51.2]} 9... Na6 {[%clk
0:02:56.7]} 10. Bf4 {[%clk 0:02:33.9]} 10... Nc7 {[%clk 0:02:54.9]} 11. a4
{[%clk 0:02:31.2]} 11... b6 {[%clk 0:02:53.3]} 12. Re1 {[%clk 0:02:26.8]} 12...
Re8 {[%clk 0:02:43.6]} 13. e4 {[%clk 0:02:25.4]} 13... Bg4 {[%clk 0:02:36.2]}
14. h3 {[%clk 0:02:18.1]} 14... Bxf3 {[%clk 0:02:36.6]} 15. Qxf3 {[%clk
0:02:18.5]} 15... Nh5 {[%clk 0:02:27.7]} 16. Be3 {[%clk 0:02:14.7]} 16... Qe7
{[%clk 0:02:18.6]} 17. g4 {[%clk 0:02:04.7]} 17... Nf6 {[%clk 0:02:18.7]} 18.
Qg3 {[%clk 0:01:57.1]} 18... Nd7 {[%clk 0:02:16.4]} 19. f4 {[%clk 0:01:48.4]}
19... g5 {[%clk 0:02:08.2]} 20. fxg5 {[%clk 0:01:28.1]} 20... a6 {[%clk
0:02:08.8]} 21. e5 {[%clk 0:01:27.6]} 21... Nxe5 {[%clk 0:02:04.3]} 22. Rad1
{[%clk 0:01:21.3]} 22... b5 {[%clk 0:01:44.3]} 23. Ne4 {[%clk 0:01:16.2]} 23...
bxa4 {[%clk 0:01:38.5]} 24. Nxc5 {[%clk 0:00:59.3]} 24... Rab8 {[%clk
0:01:28.3]} 25. Nxa4 {[%clk 0:00:48.1]} 25... Qd7 {[%clk 0:01:28.4]} 26. Nb6
{[%clk 0:00:36.4]} 26... Qb5 {[%clk 0:01:27]} 27. Bf1 {[%clk 0:00:28.5]} 27...
Qb3 {[%clk 0:01:21.5]} 28. Qf2 {[%clk 0:00:13.6]} 28... Nb5 {[%clk 0:00:58.4]}
29. Bg2 {[%clk 0:00:07.4]} 29... Nd3 {[%clk 0:00:53.1]} 30. Qf5 {[%clk
0:00:04.3]} 30... Nxe1 {[%clk 0:00:51.9]} 31. Rxe1 {[%clk 0:00:02.2]} 31... Rxe3
{[%clk 0:00:50.9]} 32. Rf1 {[%clk 0:00:03.1]} 32... Re7 {[%clk 0:00:46.9]} 33.
Be4 {[%clk 0:00:02.5]} 33... Qe3+ {[%clk 0:00:46]} 34. Rf2 {[%clk 0:00:01.9]}
34... Qxe4 {[%clk 0:00:46]} 0-1

[Event "Late-Titled-Tuesday-Blitz-September-05-2023"]
[Site "Chess.com"]
[Date "2023.09.05"]
[Round "1"]
[White "cthake"]
[Black "Chessbard1972"]
[Result "0-1"]
[WhiteElo "1874"]
[BlackElo "2510"]
[TimeControl "180+1"]
[EndTime "14:06:43 PDT"]
[Termination "Chessbard1972 won on time"]

1. e4 {[%clk 0:02:58.8]} 1... c5 {[%clk 0:02:59]} 2. Nf3 {[%clk 0:02:58.3]} 2...
a6 {[%clk 0:02:59]} 3. d4 {[%clk 0:02:57.4]} 3... cxd4 {[%clk 0:02:59.2]} 4.
Nxd4 {[%clk 0:02:57.8]} 4... e6 {[%clk 0:02:59.1]} 5. Nc3 {[%clk 0:02:57.7]}
5... Nc6 {[%clk 0:02:58.5]} 6. Be3 {[%clk 0:02:57]} 6... Bb4 {[%clk 0:02:57.9]}
7. Be2 {[%clk 0:02:54.1]} 7... Nf6 {[%clk 0:02:55.3]} 8. f3 {[%clk 0:02:46.5]}
8... d5 {[%clk 0:02:50.4]} 9. exd5 {[%clk 0:02:16.8]} 9... Nxd5 {[%clk
0:02:44.6]} 10. Nxc6 {[%clk 0:02:08.3]} 10... bxc6 {[%clk 0:02:44.2]} 11. Bd4
{[%clk 0:02:07.6]} 11... O-O {[%clk 0:02:40.4]} 12. O-O {[%clk 0:02:06.5]} 12...
c5 {[%clk 0:02:13.8]} 13. Be5 {[%clk 0:01:34.2]} 13... f6 {[%clk 0:02:07.6]} 14.
Nxd5 {[%clk 0:01:27.9]} 14... exd5 {[%clk 0:02:07.5]} 15. Bf4 {[%clk 0:01:14.9]}
15... Be6 {[%clk 0:02:03.2]} 16. c3 {[%clk 0:01:14.5]} 16... Ba5 {[%clk
0:02:02.9]} 17. Kh1 {[%clk 0:01:03.4]} 17... Bb6 {[%clk 0:01:58.2]} 18. a4
{[%clk 0:01:01.5]} 18... a5 {[%clk 0:01:58]} 19. Bd3 {[%clk 0:00:57.4]} 19...
Qd7 {[%clk 0:01:53.6]} 20. Qc2 {[%clk 0:00:56]} 20... f5 {[%clk 0:01:52.7]} 21.
Bb5 {[%clk 0:00:54.5]} 21... Qf7 {[%clk 0:01:50.7]} 22. Rad1 {[%clk 0:00:53]}
22... Rad8 {[%clk 0:01:49]} 23. Rfe1 {[%clk 0:00:52.4]} 23... d4 {[%clk
0:01:39.3]} 24. cxd4 {[%clk 0:00:50.9]} 24... Bb3 {[%clk 0:01:37.8]} 25. Qc1
{[%clk 0:00:44.4]} 25... cxd4 {[%clk 0:01:33.8]} 26. Rd2 {[%clk 0:00:34.7]}
26... h6 {[%clk 0:01:31.3]} 27. Rde2 {[%clk 0:00:34.4]} 27... d3 {[%clk
0:01:20.9]} 28. Re7 {[%clk 0:00:34.2]} 28... Qg6 {[%clk 0:01:10.8]} 29. Qc3
{[%clk 0:00:28.8]} 29... Bc2 {[%clk 0:01:02.3]} 30. Bc4+ {[%clk 0:00:19.9]}
30... Kh8 {[%clk 0:00:57]} 31. R7e6 {[%clk 0:00:20.1]} 31... Rf6 {[%clk
0:00:50.1]} 32. Rxf6 {[%clk 0:00:16.5]} 32... Qxf6 {[%clk 0:00:49.8]} 33. Be5
{[%clk 0:00:16.9]} 33... Qg6 {[%clk 0:00:47.9]} 34. g3 {[%clk 0:00:15.1]} 34...
d2 {[%clk 0:00:45.1]} 35. Bxg7+ {[%clk 0:00:03.8]} 35... Qxg7 {[%clk 0:00:42.9]}
0-1